Body,Body Name,Date,TransNo,Amount £ (Excl VAT),Supplier name,Description,Expense Area,Expense Type,Expense Code
http://opendatacommunities.org/id/london-borough-council/sutton,London Borough of Sutton,31/07/0202,10014266,38.41,LIDL GB LONDO,TAY AND LUNCH SUPPLIES,Health and Wellbeing,Equipment And Materials Purchase,A40000
http://opendatacommunities.org/id/london-borough-council/sutton,London Borough of Sutton,27/07/0202,10014266,54.37,IKEA LTD 144 CROYDON,REEN OAK SUPPLIES,Health and Wellbeing,Equipment And Materials Purchase,A40000
http://opendatacommunities.org/id/london-borough-council/sutton,London Borough of Sutton,27/07/0202,10014266,34.79,IKEA LTD 144 CROYDON,MY JOHNSON SCHOOL SUPPLIES,Health and Wellbeing,Equipment And Materials Purchase,A40000
http://opendatacommunities.org/id/london-borough-council/sutton,London Borough of Sutton,16/08/0202,10014266,100,TESCO STORES 323,ARSHALTON KITCHEN SOCIAL,Health and Wellbeing,Equipment And Materials Purchase,A40000
http://opendatacommunities.org/id/london-borough-council/sutton,London Borough of Sutton,16/08/0202,10014266,100,TESCO STORES 323,ARSHALTON KITCHEN SOCIAL VOUCHERS,Health and Wellbeing,Equipment And Materials Purchase,A40000
http://opendatacommunities.org/id/london-borough-council/sutton,London Borough of Sutton,14/08/0202,10014266,47.91,ALDI STORES LT,TAY AND LUNCH,Health and Wellbeing,Equipment And Materials Purchase,A40000
http://opendatacommunities.org/id/london-borough-council/sutton,London Borough of Sutton,12/08/0202,10014266,7.23,ALDI STORES LT,hildrens Centre Services spends,Health and Wellbeing,Miscellaneous Expenses,A49000
http://opendatacommunities.org/id/london-borough-council/sutton,London Borough of Sutton,07/08/0202,10014266,31.72,LIDL GB LONDO,hildrens Centre Services spends,Health and Wellbeing,Miscellaneous Expenses,A49000
http://opendatacommunities.org/id/london-borough-council/sutton,London Borough of Sutton,26/07/0202,10014266,50,ASDA STORES LT,hildrens Centre Services spends,Health and Wellbeing,Miscellaneous Expenses,A49000
http://opendatacommunities.org/id/london-borough-council/sutton,London Borough of Sutton,03/08/0202,10014266,169,IKEA LTD 144 CROYDON,hildrens Centre Services spends,Health and Wellbeing,Miscellaneous Expenses,A49000
http://opendatacommunities.org/id/london-borough-council/sutton,London Borough of Sutton,27/07/0202,10014266,10.82,EBAY O 23-10333-6285,OYS AND EQUIPMENT,Health and Wellbeing,Equipment And Materials Purchase,A40000
http://opendatacommunities.org/id/london-borough-council/sutton,London Borough of Sutton,27/07/0202,10014266,6.5,ASDA SUPERSTOR,OYS AND EQUIPMENT,Health and Wellbeing,Equipment And Materials Purchase,A40000
http://opendatacommunities.org/id/london-borough-council/sutton,London Borough of Sutton,27/07/0202,10014266,5.99,ASDA SUPERSTOR,OYS AND EQUIPMENT,Health and Wellbeing,Equipment And Materials Purchase,A40000
http://opendatacommunities.org/id/london-borough-council/sutton,London Borough of Sutton,27/07/0202,10014266,23.16,AMZNMKTPLACE AMAZON.C,OYS AND EQUIPMENT,Health and Wellbeing,Equipment And Materials Purchase,A40000
http://opendatacommunities.org/id/london-borough-council/sutton,London Borough of Sutton,30/07/0202,10014266,19.26,COSTCO WHOLESALE #12,ROCERIES,Health and Wellbeing,Equipment And Materials Purchase,A40000
http://opendatacommunities.org/id/london-borough-council/sutton,London Borough of Sutton,28/07/0202,10014266,17.52,AMZNMKTPLAC,OYS AND EQUIPMENT,Health and Wellbeing,Equipment And Materials Purchase,A40000
http://opendatacommunities.org/id/london-borough-council/sutton,London Borough of Sutton,27/07/0202,10014266,15,EBAY O 14-10338-8103,OYS AND EQUIPMENT,Health and Wellbeing,Equipment And Materials Purchase,A40000
http://opendatacommunities.org/id/london-borough-council/sutton,London Borough of Sutton,27/07/0202,10014266,3.32,EBAY O 23-10333-6285,OYS AND EQUIPMENT,Health and Wellbeing,Equipment And Materials Purchase,A40000
http://opendatacommunities.org/id/london-borough-council/sutton,London Borough of Sutton,22/08/0202,10014266,8.32,TWINK,WINKL SUBSCRIPTION,Health and Wellbeing,Equipment And Materials Purchase,A40000
http://opendatacommunities.org/id/london-borough-council/sutton,London Borough of Sutton,13/08/0202,10014266,19.67,AMZNMKTPLACE AMAZON.C,OYS AND EQUIPMENT,Health and Wellbeing,Equipment And Materials Purchase,A40000
http://opendatacommunities.org/id/london-borough-council/sutton,London Borough of Sutton,11/08/0202,10014266,5.82,EBAY O 07-10402-5470,OYS AND EQUIPMENT,Health and Wellbeing,Equipment And Materials Purchase,A40000
http://opendatacommunities.org/id/london-borough-council/sutton,London Borough of Sutton,11/08/0202,10014266,9.68,EBAY O 12-10399-3514,OYS AND EQUIPMENT,Health and Wellbeing,Equipment And Materials Purchase,A40000
http://opendatacommunities.org/id/london-borough-council/sutton,London Borough of Sutton,01/08/0202,10014266,26.67,EBAY O 12-10357-4087,OYS AND EQUIPMENT,Health and Wellbeing,Equipment And Materials Purchase,A40000
http://opendatacommunities.org/id/london-borough-council/sutton,London Borough of Sutton,31/07/0202,10014266,101.45,TESCO STORES 599,ROCERIES,Health and Wellbeing,Provisions,A41006
http://opendatacommunities.org/id/london-borough-council/sutton,London Borough of Sutton,14/08/0202,10014266,85.74,TESCO STORES 599,ROCERIES,Health and Wellbeing,Provisions,A41006
http://opendatacommunities.org/id/london-borough-council/sutton,London Borough of Sutton,08/08/0202,10014266,13.3,SAINSBURYS S/MKT,ROCERIES,Health and Wellbeing,Provisions,A41006
http://opendatacommunities.org/id/london-borough-council/sutton,London Borough of Sutton,07/08/0202,10014266,89.16,TESCO STORES 599,ROCERIES,Health and Wellbeing,Provisions,A41006
http://opendatacommunities.org/id/london-borough-council/sutton,London Borough of Sutton,21/08/0202,10014266,80.17,TESCO STORES 599,ROCERIES,Health and Wellbeing,Provisions,A41006
http://opendatacommunities.org/id/london-borough-council/sutton,London Borough of Sutton,27/07/0202,10014266,22.14,ASDA SUPERSTOR,ROCERIES,Health and Wellbeing,Provisions,A41006
http://opendatacommunities.org/id/london-borough-council/sutton,London Borough of Sutton,01/08/0202,10014266,161.74,BKG HOTEL AT BOOKING.,OTEL STAY TRAINING COURSE,Health and Wellbeing,Staff Development And Training,A15022
http://opendatacommunities.org/id/london-borough-council/sutton,London Borough of Sutton,25/07/0202,10014266,-122.09,BKG HOTEL AT BOOKING.,OTEL STAY FOR TRAINING,Health and Wellbeing,Staff Development And Training,A15022
http://opendatacommunities.org/id/london-borough-council/sutton,London Borough of Sutton,27/07/0202,10014266,7.61,AMZNMKTPLACE AMAZON.C,RAFT MATERIAL FOR AUTHOR EVENT,Health and Wellbeing,Equipment And Materials Purchase,A40000
http://opendatacommunities.org/id/london-borough-council/sutton,London Borough of Sutton,27/07/0202,10014266,4.73,AMZNMKTPLACE AMAZON.C,RAFT MATERIAL FOR AUTHOR EVENT,Health and Wellbeing,Equipment And Materials Purchase,A40000
http://opendatacommunities.org/id/london-borough-council/sutton,London Borough of Sutton,27/07/0202,10014266,8.4,AMZNMKTPLACE AMAZON.C,RAFT MATERIAL FOR AUTHOR EVENT,Health and Wellbeing,Equipment And Materials Purchase,A40000
http://opendatacommunities.org/id/london-borough-council/sutton,London Borough of Sutton,27/07/0202,10014266,2.16,AMZNMKTPLACE AMAZON.C,RAFT MATERIALS FOR AUTHOR EVENT,Health and Wellbeing,Equipment And Materials Purchase,A40000
http://opendatacommunities.org/id/london-borough-council/sutton,London Borough of Sutton,22/08/0202,10014266,40.46,AMZNMKTPLACE AMAZON.C,"PLIT - AFROMY 35L PLASTIC WHEELED LARGE STORAGE BOX, SET OF 4, CLEAR",Health and Wellbeing,Equipment And Materials Purchase,A40000
http://opendatacommunities.org/id/london-borough-council/sutton,London Borough of Sutton,21/08/0202,10014266,4.16,AMZNMKTPLACE AMAZON.C,PLIT - 30 SHEET LABEL STICKERS,Health and Wellbeing,Equipment And Materials Purchase,A40000
http://opendatacommunities.org/id/london-borough-council/sutton,London Borough of Sutton,12/08/0202,10014266,29.1,AMZNMKTPLAC,PLIT - HMEUEST FABRIC PENS,Health and Wellbeing,Equipment And Materials Purchase,A40000
http://opendatacommunities.org/id/london-borough-council/sutton,London Borough of Sutton,11/08/0202,10014266,11.65,AMZNMKTPLAC,PLIT - ARTCUT RIBBON,Health and Wellbeing,Equipment And Materials Purchase,A40000
http://opendatacommunities.org/id/london-borough-council/sutton,London Borough of Sutton,11/08/0202,10014266,48.96,AMZNMKTPLAC,PLIT - COTTON BAGS,Health and Wellbeing,Equipment And Materials Purchase,A40000
http://opendatacommunities.org/id/london-borough-council/sutton,London Borough of Sutton,10/08/0202,10014266,3.29,AMZNMKTPLAC,PLIT - 250 PCS ELASTIC BANDS,Health and Wellbeing,Equipment And Materials Purchase,A40000
http://opendatacommunities.org/id/london-borough-council/sutton,London Borough of Sutton,10/08/0202,10014266,6.66,AMZNMKTPLAC,PLIT - CREATIVE DECO 328 FEET JUTE TWINE ROPE STRING,Health and Wellbeing,Equipment And Materials Purchase,A40000
http://opendatacommunities.org/id/london-borough-council/sutton,London Borough of Sutton,10/08/0202,10014266,12.48,AMZNMKTPLAC,PLIT - AROMATHERAPY FRAGRANCE PERFUME,Health and Wellbeing,Equipment And Materials Purchase,A40000
http://opendatacommunities.org/id/london-borough-council/sutton,London Borough of Sutton,10/08/0202,10014266,1.54,AMZNMKTPLAC,PLIT - BLU TACK,Health and Wellbeing,Equipment And Materials Purchase,A40000
http://opendatacommunities.org/id/london-borough-council/sutton,London Borough of Sutton,10/08/0202,10014266,28.98,NISBETS LT,REASEPROOF SHEET FOR SMELLS AND FEELINGS PROJECT,Health and Wellbeing,Equipment And Materials Purchase,A40000
http://opendatacommunities.org/id/london-borough-council/sutton,London Borough of Sutton,10/08/0202,10014266,8.16,AMZNMKTPLAC,PLIT - COTTON BAGS,Health and Wellbeing,Equipment And Materials Purchase,A40000
http://opendatacommunities.org/id/london-borough-council/sutton,London Borough of Sutton,10/08/0202,10014266,24.44,FINDEL EDUCATIO,OLOURING PENCIL FOR SMELLS AND FEELINGS PROJECT,Health and Wellbeing,Equipment And Materials Purchase,A40000
http://opendatacommunities.org/id/london-borough-council/sutton,London Borough of Sutton,10/08/0202,10014266,21.95,B&Q MARKETPLAC,IGHTS FOR SMELLS AND FEELINGS PROJECT,Health and Wellbeing,Equipment And Materials Purchase,A40000
http://opendatacommunities.org/id/london-borough-council/sutton,London Borough of Sutton,10/08/0202,10014266,197.5,AMPULLA LT,OTTLES FOR SMELLS AND FEELINGS PROJECT,Health and Wellbeing,Equipment And Materials Purchase,A40000
http://opendatacommunities.org/id/london-borough-council/sutton,London Borough of Sutton,10/08/0202,10014266,13.28,AMZNMKTPLAC,PLIT - 100 X MANILLA BUFF STRUNG TAGS,Health and Wellbeing,Equipment And Materials Purchase,A40000
http://opendatacommunities.org/id/london-borough-council/sutton,London Borough of Sutton,10/08/0202,10014266,36,AMPULLA LT,ARS FOR SMELLS AND FEELINGS PROJECT,Health and Wellbeing,Equipment And Materials Purchase,A40000
http://opendatacommunities.org/id/london-borough-council/sutton,London Borough of Sutton,10/08/0202,10014266,42.47,INERR,AVENDER FOR SMELLS AND FEELINGS PROJECT,Health and Wellbeing,Equipment And Materials Purchase,A40000
http://opendatacommunities.org/id/london-borough-council/sutton,London Borough of Sutton,17/08/0202,10014266,12.75,AMZNMKTPLACE AMAZON.C,"PLIT - AURORA, 31430, FLOPSIES MAY BELL COW, 12IN, SOFT TOY, MULTI-COLOUR",Health and Wellbeing,Equipment And Materials Purchase,A40000
http://opendatacommunities.org/id/london-borough-council/sutton,London Borough of Sutton,17/08/0202,10014266,13.73,AMZNMKTPLACE AMAZON.C,"PLIT - VELOFLEX 4101090 - TABLE FLIP CHART DIN A3 LANDSCAPE FORMAT, INCLUDING TRANSPARENT SLEEVES, MADE OF PVC, TABLE STAND PRESENTATION, FLIP CHART WHITE",Health and Wellbeing,Equipment And Materials Purchase,A40000
http://opendatacommunities.org/id/london-borough-council/sutton,London Borough of Sutton,27/07/0202,10014266,5.82,AMZNMKTPLAC,EYS FOR DISABLED TOILETS,Health and Wellbeing,Equipment And Materials Purchase,A40000
http://opendatacommunities.org/id/london-borough-council/sutton,London Borough of Sutton,24/08/0202,10014266,16.8,POUNDLAND LTD - 121,utton Children's Health Service spends,Health and Wellbeing,Miscellaneous Expenses,A49000
http://opendatacommunities.org/id/london-borough-council/sutton,London Borough of Sutton,21/08/0202,10014266,41.82,ASDA SUPERSTOR,utton Children's Health Service spends,Health and Wellbeing,Miscellaneous Expenses,A49000
http://opendatacommunities.org/id/london-borough-council/sutton,London Borough of Sutton,16/08/0202,10014266,128.89,WM MORRISONS STOR,utton Children's Health Service spends,Health and Wellbeing,Miscellaneous Expenses,A49000
http://opendatacommunities.org/id/london-borough-council/sutton,London Borough of Sutton,03/08/0202,10014266,288,EVERYONE ACTIVE-DO,OOM BOOKING AT PHEONIX,Health and Wellbeing,Hire of Rooms,A22010
http://opendatacommunities.org/id/london-borough-council/sutton,London Borough of Sutton,03/08/0202,10014266,8.32,SPOTIFY P24C3D817,USIC FOR CEREMONIES,Health and Wellbeing,Subscriptions,A47010
http://opendatacommunities.org/id/london-borough-council/sutton,London Borough of Sutton,06/08/0202,10014266,21.18,SCREWFI,ommand Stips for Open House at the Register Office,Health and Wellbeing,Miscellaneous Expenses,A49000
http://opendatacommunities.org/id/london-borough-council/sutton,London Borough of Sutton,06/08/0202,10014266,5.1,SAINSBURYS SUPERM,ISSUES FOR THE REGISTER OFFICE,Health and Wellbeing,Miscellaneous Expenses,A49000
http://opendatacommunities.org/id/london-borough-council/sutton,London Borough of Sutton,21/08/0202,10014266,100,GREGG,REGGS VOUCHERS FOR PEOPLE DIRECTORATE INDUCTION NEW STARTERS.,People's Services,Staff Development And Training,A15022
http://opendatacommunities.org/id/london-borough-council/sutton,London Borough of Sutton,30/07/0202,10014266,159.9,ZOOM.US 888-799-966,UBSCRIPTION FOR TEAM,People's Services,Subscriptions,A47010
http://opendatacommunities.org/id/london-borough-council/sutton,London Borough of Sutton,17/08/0202,10014266,159.9,ZOOM.US 888-799-966,UBSCRIPTION,People's Services,Subscriptions,A47010
http://opendatacommunities.org/id/london-borough-council/sutton,London Borough of Sutton,17/08/0202,10014266,339.17,LBSUTTO,A49000 M61723,People's Services,Miscellaneous Expenses,A49000
http://opendatacommunities.org/id/london-borough-council/sutton,London Borough of Sutton,23/08/0202,10014266,39.99,AO RETAIL LIMITE,O PAYMENT,People's Services,Approved Lodgings,A61000
http://opendatacommunities.org/id/london-borough-council/sutton,London Borough of Sutton,23/08/0202,10014266,"1,256.00",AO RETAIL LIMITE,"ASHER DRYER, FRIDGE FREEZER, TV X 2 PAYMENT FOR CLIENT",People's Services,Approved Lodgings,A61000
http://opendatacommunities.org/id/london-borough-council/sutton,London Borough of Sutton,23/08/0202,10014266,22,IKEA LTD SHOP ONLIN,KEA PAYMENT,People's Services,Approved Lodgings,A61000
http://opendatacommunities.org/id/london-borough-council/sutton,London Borough of Sutton,23/08/0202,10014266,67.18,SP HOOD GREETING,REETING CARD PAYMENT,People's Services,Approved Lodgings,A61000
http://opendatacommunities.org/id/london-borough-council/sutton,London Borough of Sutton,23/08/0202,10014266,-22,IKEA LTD SHOP ONLIN,KEA PAYMENT REFUND,People's Services,Approved Lodgings,A61000
http://opendatacommunities.org/id/london-borough-council/sutton,London Borough of Sutton,24/08/0202,10014266,-67.18,SP HOOD GREETING,REETING CARD PAYMENT REFUND,People's Services,Approved Lodgings,A61000
http://opendatacommunities.org/id/london-borough-council/sutton,London Borough of Sutton,29/07/0202,10014266,-50.71,CLOCKTOWER CAR,AXI REQUIRED FOR A CLIENT - REFUNDED AS DRIVER DID NOT TURN UP,People's Services,C.C.A Travel & Subsistance,A61010
http://opendatacommunities.org/id/london-borough-council/sutton,London Borough of Sutton,28/07/0202,10014266,50.71,CLOCKTOWER CAR,AXI REQUIRED FOR A CLIENT,People's Services,C.C.A Travel & Subsistance,A61010
http://opendatacommunities.org/id/london-borough-council/sutton,London Borough of Sutton,08/08/0202,10014266,14.89,AMZNMKTPLAC,PLIT - TECKNET 2.4G WIRELESS KEYBOARDWHISPER-QUIET KEYBOARD,People's Services,Equipment,A61013
http://opendatacommunities.org/id/london-borough-council/sutton,London Borough of Sutton,09/08/0202,10014266,14.89,AMZNMKTPLAC,PLIT - TECKNET 2.4G WIRELESS KEYBOARD,People's Services,Equipment,A61013
http://opendatacommunities.org/id/london-borough-council/sutton,London Borough of Sutton,22/08/0202,10014266,133.5,ECL PLASTICS LT,HARITY COUNTER BUCKET LABELS AND CHAINS,Resources,Equipment And Materials Purchase,A40000
http://opendatacommunities.org/id/london-borough-council/sutton,London Borough of Sutton,15/08/0202,10014266,9.99,AMZNMKTPLACE AMAZON.C,AFFLE TICKET FOR MAYORAL FUNDRAISING EVENTS,Resources,Equipment And Materials Purchase,A40000
http://opendatacommunities.org/id/london-borough-council/sutton,London Borough of Sutton,09/08/0202,10014266,150,HS PRINTING AND COMPU,AYOR'S CHARITIES BANNERS,Resources,Equipment And Materials Purchase,A40000
http://opendatacommunities.org/id/london-borough-council/sutton,London Borough of Sutton,04/08/0202,10014266,32.5,ECL PLASTICS LT,EPLACEMENT MAYOR'S CHARITIES BUCKET LABELS,Resources,Equipment And Materials Purchase,A40000
http://opendatacommunities.org/id/london-borough-council/sutton,London Borough of Sutton,27/07/0202,10014266,32.5,ECL PLASTICS LT,AYOR'S CHARITIES BUCKET LABELS,Resources,Equipment And Materials Purchase,A40000
http://opendatacommunities.org/id/london-borough-council/sutton,London Borough of Sutton,21/08/0202,10014266,245.57,MAILCHIM,HP MAILCHIMP SUBSCRIPTION RECHARGE TO COST CODE  C63500 A47010,Resources,Publicity,A44266
http://opendatacommunities.org/id/london-borough-council/sutton,London Borough of Sutton,16/08/0202,10014266,85,SM1 PRINT STUDI,ELFIE FRAME,Resources,Publicity,A44266
http://opendatacommunities.org/id/london-borough-council/sutton,London Borough of Sutton,14/08/0202,10014266,428.68,MAILCHIM,UBSCRIPTION,Resources,Publicity,A44266
http://opendatacommunities.org/id/london-borough-council/sutton,London Borough of Sutton,17/08/0202,10014266,"10,000.00",CS MORRISONS GIFT CAR,L&G,Resources,"Grants, Contributions & Donations",A47005
http://opendatacommunities.org/id/london-borough-council/sutton,London Borough of Sutton,17/08/0202,10014266,"9,000.00",CS MORRISONS GIFT CAR,L&G,Resources,"Grants, Contributions & Donations",A47005
http://opendatacommunities.org/id/london-borough-council/sutton,London Borough of Sutton,05/08/0202,10014266,20,OYSTER BUS AUTOLOA,L&G,Resources,"Grants, Contributions & Donations",A47005
http://opendatacommunities.org/id/london-borough-council/sutton,London Borough of Sutton,13/08/0202,10014266,20,OYSTER BUS AUTOLOA,L&G,Resources,"Grants, Contributions & Donations",A47005
http://opendatacommunities.org/id/london-borough-council/sutton,London Borough of Sutton,16/08/0202,10014266,148.5,SHELTER TRADING LT,URCHASE OF HB GUIDANCE MANUALS FROM SHELTER ONLINE,Resources,Stationery,A43015
http://opendatacommunities.org/id/london-borough-council/sutton,London Borough of Sutton,28/07/0202,10014266,20,TFL OYSTER AUTO TOPU,L&G,Resources,Miscellaneous Expenses,A49000
http://opendatacommunities.org/id/london-borough-council/sutton,London Borough of Sutton,22/08/0202,10014266,9.86,AMZNMKTPLAC,TEMS REQUIRED FOR THE INNOVATION GATEWAY,Resources,Equipment And Materials Purchase,A40000
http://opendatacommunities.org/id/london-borough-council/sutton,London Borough of Sutton,22/08/0202,10014266,25.81,AMZNMKTPLAC,ALL SAFES REQUIRED FOR KEYS INTERNAL SECURITY,Resources,Equipment And Materials Repairs & Maintenance,A40051
http://opendatacommunities.org/id/london-borough-council/sutton,London Borough of Sutton,22/08/0202,10014266,92.01,AMZNMKTPLAC,TEMS REQUIRED FOR THE TENANTS AND GUESTS HOSPITALITY,Resources,Catering,A41000
http://opendatacommunities.org/id/london-borough-council/sutton,London Borough of Sutton,25/08/0202,10014266,6.66,AMZNMKTPLACE AMAZON.C,EAR PLANNER 2024 FOR INNOVATION GATEWAY,Resources,Stationery,A43015
http://opendatacommunities.org/id/london-borough-council/sutton,London Borough of Sutton,27/07/0202,10014266,48,WP-COURTEL COMMUN,P TEAM EXPENSES,Resources,Miscellaneous Expenses,A49000
http://opendatacommunities.org/id/london-borough-council/sutton,London Borough of Sutton,25/08/0202,10014266,388.3,TRAVELODG,MERGENCY ACCOMMODATION FOR HOMELESS HOUSEHOLD,Environment Housing and Neighbourhoods,Bed & Breakfast,A56000
http://opendatacommunities.org/id/london-borough-council/sutton,London Borough of Sutton,23/08/0202,10014266,209.98,TRAVELODG,MERGENCY ACCOMMODATION FOR HOMELESS HOUSEHOLD,Environment Housing and Neighbourhoods,Bed & Breakfast,A56000
http://opendatacommunities.org/id/london-borough-council/sutton,London Borough of Sutton,22/08/0202,10014266,94.99,TRAVELODG,MERGENCY ACCOMMODATION FOR HOMELESS HOUSEHOLD,Environment Housing and Neighbourhoods,Bed & Breakfast,A56000
http://opendatacommunities.org/id/london-borough-council/sutton,London Borough of Sutton,03/08/0202,10014266,210,OASISPLAY.ORG.U,O KARTING,People's Services,Client Activities,A56028
http://opendatacommunities.org/id/london-borough-council/sutton,London Borough of Sutton,04/08/0202,10014266,79.75,WWW.LASERQUESTBROMLEY,ASER QUEST PAYMENT FOR CLIENT,People's Services,Client Activities,A56028
http://opendatacommunities.org/id/london-borough-council/sutton,London Borough of Sutton,04/08/0202,10014266,79.75,WWW.LASERQUESTBROMLEY,ASER QUEST PAYMENT FOR CLIENT,People's Services,Client Activities,A56028
http://opendatacommunities.org/id/london-borough-council/sutton,London Borough of Sutton,02/08/0202,10014266,112.15,EMPIRE CINEMA,INEMA TRIP FOR YP,People's Services,Client Care/Assistance,A61011
http://opendatacommunities.org/id/london-borough-council/sutton,London Borough of Sutton,20/08/0202,10014266,200,AMAZON.CO.UK 1F78L26T,PLIT - AMAZON.CO.UK GIFT CARD FOR CUSTOM AMOUNT IN A NAVY AND GOLD MINI ENVELOPE,People's Services,Client Care/Assistance,A61011
http://opendatacommunities.org/id/london-borough-council/sutton,London Borough of Sutton,07/08/0202,10014266,5.71,POST OFFICE COUNTE,ASSPORT APPLICATION,People's Services,Equipment And Materials Purchase,A40000
http://opendatacommunities.org/id/london-borough-council/sutton,London Borough of Sutton,03/08/0202,10014266,44.58,HM PASSPORT OFFIC,ASSPORT RENEWAL,People's Services,Equipment And Materials Purchase,A40000
http://opendatacommunities.org/id/london-borough-council/sutton,London Borough of Sutton,07/08/0202,10014266,0.62,NAJ LT,NVELOPE FOR PASSPORT,People's Services,Equipment And Materials Purchase,A40000
http://opendatacommunities.org/id/london-borough-council/sutton,London Borough of Sutton,18/08/0202,10014266,94,AMZNMKTPLACE AMAZON.C,HONE NEEDED FOR A YOUNG PERSON,People's Services,Miscellaneous Expenses,A49000
http://opendatacommunities.org/id/london-borough-council/sutton,London Borough of Sutton,14/08/0202,10014266,114.95,NIKE GB,IKE,People's Services,Miscellaneous Expenses,A49000
http://opendatacommunities.org/id/london-borough-council/sutton,London Borough of Sutton,31/07/0202,10014266,27.08,AMAZON.CO.UK NL0MR8PG,PORT EQUOSPORT EQUIP,People's Services,Miscellaneous Expenses,A49000
http://opendatacommunities.org/id/london-borough-council/sutton,London Borough of Sutton,27/07/0202,10014266,58.33,WWW.ARGOS.CO.U,D,People's Services,Miscellaneous Expenses,A49000
http://opendatacommunities.org/id/london-borough-council/sutton,London Borough of Sutton,26/07/0202,10014266,5.65,COSTA COFFE,W ACTIVITY AFTER EXAMS,People's Services,Miscellaneous Expenses,A49000
http://opendatacommunities.org/id/london-borough-council/sutton,London Borough of Sutton,18/08/0202,10014266,148.68,EUROPCA,OVE KW,People's Services,Miscellaneous Expenses,A49000
http://opendatacommunities.org/id/london-borough-council/sutton,London Borough of Sutton,18/08/0202,10014266,60,HIGH STREET VOUCHER,M 21ST AND CS,People's Services,Miscellaneous Expenses,A49000
http://opendatacommunities.org/id/london-borough-council/sutton,London Borough of Sutton,16/08/0202,10014266,171.48,LBSUTTO,R RENT,People's Services,Miscellaneous Expenses,A49000
http://opendatacommunities.org/id/london-borough-council/sutton,London Borough of Sutton,20/08/0202,10014266,20.82,AMZNMKTPLAC,PLIT - WHITE NOISE MACHINE,People's Services,Miscellaneous Expenses,A49000
http://opendatacommunities.org/id/london-borough-council/sutton,London Borough of Sutton,04/08/0202,10014266,15.2,NEW SOUTHERN RAIL,RAVEL TO EG,People's Services,C.C.A Travel & Subsistance,A61010
http://opendatacommunities.org/id/london-borough-council/sutton,London Borough of Sutton,11/08/0202,10014266,75,AMZNMKTPLACE AMAZON.C,PLIT - SAMSUNG GALAXY A04S,People's Services,Client Care/Assistance,A61011
http://opendatacommunities.org/id/london-borough-council/sutton,London Borough of Sutton,24/08/0202,10014266,5.59,AMZNBUSINESS 1M2SZ5ZP,PLIT - MAN VS BEAST,People's Services,Client Care/Assistance,A61011
http://opendatacommunities.org/id/london-borough-council/sutton,London Borough of Sutton,09/08/0202,10014266,368,IKEA LTD SHOP ONLIN,KEA PAYMENT,People's Services,Client Care/Assistance,A61011
http://opendatacommunities.org/id/london-borough-council/sutton,London Borough of Sutton,07/08/0202,10014266,11,SUTTON REGISTER OFFIC,IRTH CERTIFICATE PAYMENT,People's Services,Equipment And Materials Purchase,A40000
http://opendatacommunities.org/id/london-borough-council/sutton,London Borough of Sutton,16/08/0202,10014266,109,POST OFFICE COUNTE,G PASSPORT,People's Services,Miscellaneous Expenses,A49000
http://opendatacommunities.org/id/london-borough-council/sutton,London Borough of Sutton,26/07/0202,10014266,109.98,EASYJE,LIGHTS,People's Services,Living Allowance,A56016
http://opendatacommunities.org/id/london-borough-council/sutton,London Borough of Sutton,03/08/0202,10014266,78.75,Z HOTELS GLASGO,OTEL BOOKING FOR CLIENT IN GLASGOW,People's Services,Approved Lodgings,A61000
http://opendatacommunities.org/id/london-borough-council/sutton,London Borough of Sutton,08/08/0202,10014266,38.71,TRAINLINE.CO,S WEEKLY TRAVEL,People's Services,C.C.A Travel & Subsistance,A61010
http://opendatacommunities.org/id/london-borough-council/sutton,London Borough of Sutton,25/08/0202,10014266,120.35,EASYJE,LANE TICKET PAYMENT FOR CLIENT,People's Services,C.C.A Travel & Subsistance,A61010
http://opendatacommunities.org/id/london-borough-council/sutton,London Borough of Sutton,24/08/0202,10014266,26.2,WWW.WIGHTLINK.CO.U,ERRY PAYMENT FOR CLIENT,People's Services,C.C.A Travel & Subsistance,A61010
http://opendatacommunities.org/id/london-borough-council/sutton,London Borough of Sutton,22/08/0202,10014266,40,SQ  ADAMS TAXI,AXI PAYMENT FOR CLIENT,People's Services,C.C.A Travel & Subsistance,A61010
http://opendatacommunities.org/id/london-borough-council/sutton,London Borough of Sutton,21/08/0202,10014266,18.74,HPI INSTANT INK U,NK FOR WILLOW RISE CHILDREN'S HOME,People's Services,Miscellaneous Expenses,A49000
http://opendatacommunities.org/id/london-borough-council/sutton,London Borough of Sutton,15/08/0202,10014266,5.42,ASDA GROCERIES ONLIN,SDA FOR WILLOW RISE,People's Services,Miscellaneous Expenses,A49000
http://opendatacommunities.org/id/london-borough-council/sutton,London Borough of Sutton,24/08/0202,10014266,141.28,ASDA GROCERIES ONLIN,SDA SHOPPING PAYMENT,People's Services,Miscellaneous Expenses,A49000
http://opendatacommunities.org/id/london-borough-council/sutton,London Borough of Sutton,19/08/0202,10014266,29.99,AMZNMKTPLAC,"PLIT - ""REDACTED - PERSONAL DATA"" SPORTS DAY KIT",People's Services,Miscellaneous Expenses,A49000
http://opendatacommunities.org/id/london-borough-council/sutton,London Borough of Sutton,21/08/0202,10014266,33.88,AMZNMKTPLAC,PLIT - WIRELESS DOOR OPEN SENSOR ALARM,People's Services,Miscellaneous Expenses,A49000
http://opendatacommunities.org/id/london-borough-council/sutton,London Borough of Sutton,04/08/0202,10014266,49.95,AMZNMKTPLAC,PLIT - INMOZATA LINEN FABRIC FOOTSTOOL STORAGE,People's Services,Miscellaneous Expenses,A49000
http://opendatacommunities.org/id/london-borough-council/sutton,London Borough of Sutton,28/07/0202,10014266,7.88,AMZNMKTPLACE AMAZON.C,TEMS NEEDED FOR WILLOW RISE CHILDRENS HOME,People's Services,Miscellaneous Expenses,A49000
http://opendatacommunities.org/id/london-borough-council/sutton,London Borough of Sutton,27/07/0202,10014266,118.58,ASDA GROCERIES ONLIN,SDA FOR WILLOW RISE,People's Services,Miscellaneous Expenses,A49000
http://opendatacommunities.org/id/london-borough-council/sutton,London Borough of Sutton,27/07/0202,10014266,-5.97,ASDA GROCERIES ONLIN,SDA FOR WILLOW RISE - NO REFUND PROVIDED,People's Services,Miscellaneous Expenses,A49000
http://opendatacommunities.org/id/london-borough-council/sutton,London Borough of Sutton,03/08/0202,10014266,143.14,ASDA GROCERIES ONLIN,SDA SHOPPING PAYMENT,People's Services,Miscellaneous Expenses,A49000
http://opendatacommunities.org/id/london-borough-council/sutton,London Borough of Sutton,03/08/0202,10014266,28.99,AMZNMKTPLACE AMAZON.C,PLIT - FARLA MEDICAL MEDIHANDS NITRILE GLOVES,People's Services,Miscellaneous Expenses,A49000
http://opendatacommunities.org/id/london-borough-council/sutton,London Borough of Sutton,03/08/0202,10014266,9.99,AMZNMKTPLACE AMAZON.C,PLIT - 4 PACK ELBOW GREASE ANTIBACTERIAL RUBBER GLOVES,People's Services,Miscellaneous Expenses,A49000
http://opendatacommunities.org/id/london-borough-council/sutton,London Borough of Sutton,01/08/0202,10014266,166.59,COSTCO ONLINE UK LIMI,OSTCO FOOD PAYMENT,People's Services,Miscellaneous Expenses,A49000
http://opendatacommunities.org/id/london-borough-council/sutton,London Borough of Sutton,03/08/0202,10014266,19.69,AMZNMKTPLACE AMAZON.C,PLIT - ANDREX GENTLE CLEAN TOILET ROLLS,People's Services,Miscellaneous Expenses,A49000
http://opendatacommunities.org/id/london-borough-council/sutton,London Borough of Sutton,03/08/0202,10014266,33.89,AMZNMKTPLACE AMAZON.C,PLIT - AIDEA MICROFIBRE CLOTH PACK OF 100,People's Services,Miscellaneous Expenses,A49000
http://opendatacommunities.org/id/london-borough-council/sutton,London Borough of Sutton,03/08/0202,10014266,40,AMZNMKTPLACE AMAZON.C,PLIT - AMAZONCOMMERCIAL INTERFOLD,People's Services,Miscellaneous Expenses,A49000
http://opendatacommunities.org/id/london-borough-council/sutton,London Borough of Sutton,10/08/0202,10014266,199.99,WWW.TEAMTEACH.CO.U,OOK PAYMENT,People's Services,Miscellaneous Expenses,A49000
http://opendatacommunities.org/id/london-borough-council/sutton,London Borough of Sutton,17/08/0202,10014266,143.68,ASDA GROCERIES ONLIN,SDA FOOD SHOPPING PAYMENT,People's Services,Miscellaneous Expenses,A49000
http://opendatacommunities.org/id/london-borough-council/sutton,London Borough of Sutton,24/08/0202,10014266,-6.51,ASDA GROCERIES ONLIN,SDA SHOPPING REFUND,People's Services,Miscellaneous Expenses,A49000
http://opendatacommunities.org/id/london-borough-council/sutton,London Borough of Sutton,17/08/0202,10014266,15.99,NETFLIX.CO,ETFLIX PAYMENT,People's Services,Miscellaneous Expenses,A49000
http://opendatacommunities.org/id/london-borough-council/sutton,London Borough of Sutton,17/08/0202,10014266,-1.27,ASDA GROCERIES ONLIN,SDA FOOD SHOPPING REFUND,People's Services,Miscellaneous Expenses,A49000
http://opendatacommunities.org/id/london-borough-council/sutton,London Borough of Sutton,11/08/0202,10014266,-3.1,ASDA GROCERIES ONLIN,SDA FOOD SHOPPING REFUND,People's Services,Miscellaneous Expenses,A49000
http://opendatacommunities.org/id/london-borough-council/sutton,London Borough of Sutton,11/08/0202,10014266,141.51,ASDA GROCERIES ONLIN,SDA FOOD SHOPPING PAYMENT,People's Services,Miscellaneous Expenses,A49000
http://opendatacommunities.org/id/london-borough-council/sutton,London Borough of Sutton,02/08/0202,10014266,23.99,AMZNMKTPLAC,PLIT - OZMIC CARPET RUNNERS,People's Services,Miscellaneous Expenses,A49000
http://opendatacommunities.org/id/london-borough-council/sutton,London Borough of Sutton,01/08/0202,10014266,29.99,AMZNMKTPLAC,PLIT - SCOTT ESSENTIAL HAND TOWELS,People's Services,Miscellaneous Expenses,A49000
http://opendatacommunities.org/id/london-borough-council/sutton,London Borough of Sutton,01/08/0202,10014266,30.99,COSTCO ONLINE UK LIMI,OSTCO FOOD PAYMENT,People's Services,Miscellaneous Expenses,A49000
http://opendatacommunities.org/id/london-borough-council/sutton,London Borough of Sutton,08/08/0202,10014266,37.8,WILKO.CO,ILKO PAYMENT,People's Services,Approved Lodgings,A61000
http://opendatacommunities.org/id/london-borough-council/sutton,London Borough of Sutton,08/08/0202,10014266,295.97,B&Q MARKETPLAC,AINT & WALLPAPER FROM B&Q PAYMENT,People's Services,Approved Lodgings,A61000
http://opendatacommunities.org/id/london-borough-council/sutton,London Borough of Sutton,08/08/0202,10014266,27.96,AMZNMKTPLACE AMAZON.C,PLIT - KVELEE - 6 PACK LARGE PLASTIC DUST SHEETS,People's Services,Approved Lodgings,A61000
http://opendatacommunities.org/id/london-borough-council/sutton,London Borough of Sutton,08/08/0202,10014266,-1.4,AMZNMKTPLACE AMAZON.C,ALANCING ENTRY AMOUNT,People's Services,Approved Lodgings,A61000
http://opendatacommunities.org/id/london-borough-council/sutton,London Borough of Sutton,08/08/0202,10014266,16,B&Q LT,AINT FROM B&Q PAYMENT,People's Services,Approved Lodgings,A61000
http://opendatacommunities.org/id/london-borough-council/sutton,London Borough of Sutton,09/08/0202,10014266,87.93,TEAM SPORT KARTIN,O KARTING PAYMENT FOR CLIENT,People's Services,Client Care/Assistance,A61011
http://opendatacommunities.org/id/london-borough-council/sutton,London Borough of Sutton,18/08/0202,10014266,108,GO AP,O APE PAYMENT FOR CLIENT,People's Services,Client Care/Assistance,A61011
http://opendatacommunities.org/id/london-borough-council/sutton,London Borough of Sutton,11/08/0202,10014266,12,"GARSON FARM, ESHE",ARM TICKETS PAYMENT FOR CLIENT,People's Services,Client Care/Assistance,A61011
http://opendatacommunities.org/id/london-borough-council/sutton,London Borough of Sutton,02/08/0202,10014266,112,EXCITING ESCAPE,SCAPE ROOMS PAYMENT FOR CLIENT,People's Services,Client Care/Assistance,A61011
http://opendatacommunities.org/id/london-borough-council/sutton,London Borough of Sutton,27/07/0202,10014266,43.99,SPORTSDIRECT 25,K,People's Services,Miscellaneous Expenses,A49000
http://opendatacommunities.org/id/london-borough-council/sutton,London Borough of Sutton,20/08/0202,10014266,20.82,AMZNMKTPLAC,PLIT - WHITE NOISE MACHINE,People's Services,Miscellaneous Expenses,A49000
http://opendatacommunities.org/id/london-borough-council/sutton,London Borough of Sutton,16/08/0202,10014266,46.9,AMZNMKTPLAC,PLIT - VIHIR UNIVERSAL BUGGY BOARD WITH SEAT,People's Services,Client Care/Assistance,A61011
http://opendatacommunities.org/id/london-borough-council/sutton,London Borough of Sutton,25/08/0202,10014266,200,POST OFFICE COUNTE,ASSPORT APPLICATIONS,People's Services,Equipment And Materials Purchase,A40000
http://opendatacommunities.org/id/london-borough-council/sutton,London Borough of Sutton,09/08/0202,10014266,33,SUTTON REGISTER OFFIC,IRTH CERT,People's Services,Equipment And Materials Purchase,A40000
http://opendatacommunities.org/id/london-borough-council/sutton,London Borough of Sutton,09/08/0202,10014266,33,SUTTON REGISTER OFFIC,IRTH CERT,People's Services,Equipment And Materials Purchase,A40000
http://opendatacommunities.org/id/london-borough-council/sutton,London Borough of Sutton,09/08/0202,10014266,33,SUTTON REGISTER OFFIC,IRTH CERT,People's Services,Equipment And Materials Purchase,A40000
http://opendatacommunities.org/id/london-borough-council/sutton,London Borough of Sutton,09/08/0202,10014266,33,SUTTON REGISTER OFFIC,IRTH CERT,People's Services,Equipment And Materials Purchase,A40000
http://opendatacommunities.org/id/london-borough-council/sutton,London Borough of Sutton,10/08/0202,10014266,35.9,WANDSWORTH COUNCI,IRTH CERT,People's Services,Equipment And Materials Purchase,A40000
http://opendatacommunities.org/id/london-borough-council/sutton,London Borough of Sutton,10/08/0202,10014266,35.9,WANDSWORTH COUNCI,IRTH CERT,People's Services,Equipment And Materials Purchase,A40000
http://opendatacommunities.org/id/london-borough-council/sutton,London Borough of Sutton,25/07/0202,10014266,-25,GEN REGISTER OFFIC,IRTH CERTIFICATE REFUND,People's Services,Equipment And Materials Purchase,A40000
http://opendatacommunities.org/id/london-borough-council/sutton,London Borough of Sutton,01/08/0202,10014266,22,SUTTON REGISTER OFFIC,IRTH CERTIFICATE PAYMENT,People's Services,Equipment And Materials Purchase,A40000
http://opendatacommunities.org/id/london-borough-council/sutton,London Borough of Sutton,01/08/0202,10014266,21,TOWER HAMLETS B,IRTH CERTIFICATE PAYMENT,People's Services,Equipment And Materials Purchase,A40000
http://opendatacommunities.org/id/london-borough-council/sutton,London Borough of Sutton,02/08/0202,10014266,64.4,TESCO STORES 599,ESCO FOOD PAYMENT,People's Services,Equipment And Materials Purchase,A40000
http://opendatacommunities.org/id/london-borough-council/sutton,London Borough of Sutton,11/08/0202,10014266,39.95,AMZNMKTPLAC,PLIT - WHAM CRYSTAL 4X 80L PLASTIC STORAGE BOXES,People's Services,Client Care/Assistance,A61011
http://opendatacommunities.org/id/london-borough-council/sutton,London Borough of Sutton,11/08/0202,10014266,179.99,AMZNMKTPLAC,"PLIT - COOKOLOGY CCFZ142BK FREESTANDING 142 LITRE CAPACITY, CHEST FREEZER",People's Services,Client Care/Assistance,A61011
http://opendatacommunities.org/id/london-borough-council/sutton,London Borough of Sutton,14/08/0202,10014266,8.99,AMZNMKTPLAC,PLIT - SASMA HOME - 2 X COT FITTED SHEETS 120X60CM,People's Services,Client Care/Assistance,A61011
http://opendatacommunities.org/id/london-borough-council/sutton,London Borough of Sutton,13/08/0202,10014266,20.82,AMZNMKTPLAC,PLIT - SILENTNIGHT DEEP SLEEP SINGLE MATTRESS TOPPER,People's Services,Client Care/Assistance,A61011
http://opendatacommunities.org/id/london-borough-council/sutton,London Borough of Sutton,13/08/0202,10014266,32.49,AMZNMKTPLAC,PLIT - MOTHER NURTURE CLASSIC ECO FIBRE COT MATTRESS,People's Services,Client Care/Assistance,A61011
http://opendatacommunities.org/id/london-borough-council/sutton,London Borough of Sutton,13/08/0202,10014266,23.98,AMZNMKTPLAC,PLIT - ENHANCED LIVING SILVER PLAIN WOVEN VOILE SLOT TOP CURTAIN PANEL PAIR,People's Services,Client Care/Assistance,A61011
http://opendatacommunities.org/id/london-borough-council/sutton,London Borough of Sutton,13/08/0202,10014266,13.99,AMZNMKTPLAC,PLIT - BABY'S COMFORT REVERSIBLE 2PCS BABY BEDDING SET,People's Services,Client Care/Assistance,A61011
http://opendatacommunities.org/id/london-borough-council/sutton,London Borough of Sutton,13/08/0202,10014266,24.99,AMZNMKTPLAC,PLIT - ELEPHANT REVERSIBLE BEDDING SET FOR BABY BOY COT,People's Services,Client Care/Assistance,A61011
http://opendatacommunities.org/id/london-borough-council/sutton,London Borough of Sutton,11/08/0202,10014266,15.99,AMZNMKTPLAC,PLIT - BABY COMFORT DUVET AND PILLOW SET 120X90 CM FOR BABY COT BED,People's Services,Client Care/Assistance,A61011
http://opendatacommunities.org/id/london-borough-council/sutton,London Borough of Sutton,20/08/0202,10014266,187.69,AMZNBUSINESS 1F44G0S2,PLIT - DORO 780X 4G GSM MOBILE PHONE,People's Services,Client Care/Assistance,A61011
http://opendatacommunities.org/id/london-borough-council/sutton,London Borough of Sutton,10/08/0202,10014266,497.18,TRAVELODG,OTEL STAY REQUIRED FOR A CLIENT,People's Services,Client Care/Assistance,A61011
http://opendatacommunities.org/id/london-borough-council/sutton,London Borough of Sutton,11/08/0202,10014266,451.25,PREMIER IN,OTEL STAY REQUIRED FOR A CLIENT,People's Services,Client Care/Assistance,A61011
http://opendatacommunities.org/id/london-borough-council/sutton,London Borough of Sutton,08/08/0202,10014266,553.79,TRAVELODG,OTEL STAY,People's Services,Client Care/Assistance,A61011
http://opendatacommunities.org/id/london-borough-council/sutton,London Borough of Sutton,18/08/0202,10014266,536.5,PREMIER IN,OTEL PAYMENT FOR CLIENT,People's Services,Client Care/Assistance,A61011
http://opendatacommunities.org/id/london-borough-council/sutton,London Borough of Sutton,17/08/0202,10014266,496.66,TRAVELODG,OTEL PAYMENT FOR CLIENT,People's Services,Client Care/Assistance,A61011
http://opendatacommunities.org/id/london-borough-council/sutton,London Borough of Sutton,25/08/0202,10014266,458.5,PREMIER IN,OTEL PAYMENT,People's Services,Client Care/Assistance,A61011
http://opendatacommunities.org/id/london-borough-council/sutton,London Borough of Sutton,02/08/0202,10014266,450,PREMIER IN,LIENT STAY AT HOTEL,People's Services,Client Care/Assistance,A61011
http://opendatacommunities.org/id/london-borough-council/sutton,London Borough of Sutton,10/08/0202,10014266,67.6,CORAMBAA,ORAM BAAF PAYMENT,People's Services,Books,A43050
http://opendatacommunities.org/id/london-borough-council/sutton,London Borough of Sutton,03/08/0202,10014266,48,CORAMBAA,ostering Team expenses,People's Services,Miscellaneous Expenses,A49000
http://opendatacommunities.org/id/london-borough-council/sutton,London Borough of Sutton,28/07/0202,10014266,100,WALLINGTON CARS & COU,AXI,People's Services,Client Care/Assistance,A61011
http://opendatacommunities.org/id/london-borough-council/sutton,London Borough of Sutton,23/08/0202,10014266,219.6,WWW.BIGYELLOW.CO.U,TORAGE,People's Services,Storage And Archiving Services,A44085
http://opendatacommunities.org/id/london-borough-council/sutton,London Borough of Sutton,11/08/0202,10014266,209.6,WWW.BIGYELLOW.CO.U,TORAGE PAYMENT,People's Services,Miscellaneous Expenses,A49000
http://opendatacommunities.org/id/london-borough-council/sutton,London Borough of Sutton,08/08/0202,10014266,-28.6,WWW.OVOENERGY.CO,EFUND,People's Services,Electricity,A21000
http://opendatacommunities.org/id/london-borough-council/sutton,London Borough of Sutton,08/08/0202,10014266,-46.67,WWW.OVOENERGY.CO,EFUND,People's Services,Gas,A21003
http://opendatacommunities.org/id/london-borough-council/sutton,London Borough of Sutton,24/08/0202,10014266,103.75,WWW.WIGHTLINK.CO.U,ERRY,People's Services,C.C.A Travel & Subsistance,A61010
http://opendatacommunities.org/id/london-borough-council/sutton,London Borough of Sutton,22/08/0202,10014266,458.33,PAYPAL  FRG LT,XTERNAL TRAINING REQUESTS,People's Services,Staff Development And Training,A15022
http://opendatacommunities.org/id/london-borough-council/sutton,London Borough of Sutton,22/08/0202,10014266,916.67,PAYPAL  FRG LT,XTERNAL TRAINING REQUESTS,People's Services,Staff Development And Training,A15022
http://opendatacommunities.org/id/london-borough-council/sutton,London Borough of Sutton,22/08/0202,10014266,458.33,PAYPAL  FRG LT,XTERNAL TRAINING REQUESTS,People's Services,Staff Development And Training,A15022
http://opendatacommunities.org/id/london-borough-council/sutton,London Borough of Sutton,08/08/0202,10014266,698.25,S.C.T.,OCIAL CARE TRAINING SOLUTIONS X3 COURSES,People's Services,Staff Development And Training,A15022
http://opendatacommunities.org/id/london-borough-council/sutton,London Borough of Sutton,07/08/0202,10014266,175,HTTPS://ISLINGTON.CIV,OY GOODGER - NRPF NETWORK - SUPPORTING FAMILIES WITH NO ACCESS TO PUBLIC FUNDS 11/09/23,People's Services,Staff Development And Training,A15022
http://opendatacommunities.org/id/london-borough-council/sutton,London Borough of Sutton,07/08/0202,10014266,598.8,PARENTASSES,NDREA BRYANT - PARENTASSESS ASSESSOR TRAINING 4TH & 5TH OCTOBER 2023,People's Services,Staff Development And Training,A15022
http://opendatacommunities.org/id/london-borough-council/sutton,London Borough of Sutton,04/08/0202,10014266,160,WWW.NCORE.ORG.U,ARAH HILLS - INTRODUCTION TO SENSORY PROCESSING DIFFICULTIES,People's Services,Staff Development And Training,A15022
http://opendatacommunities.org/id/london-borough-council/sutton,London Borough of Sutton,14/08/0202,10014266,190,LONDON BOROUGH O,IRE OF CHAUCER CENTRE,People's Services,Staff Development And Training,A15022
http://opendatacommunities.org/id/london-borough-council/sutton,London Borough of Sutton,11/08/0202,10014266,990,WALLINGTON CARS & COU,AXI,People's Services,Client Care/Assistance,A61011
http://opendatacommunities.org/id/london-borough-council/sutton,London Borough of Sutton,06/08/0202,10014266,9.51,AMZNMKTPLACE AMAZON.C,PLIT - COATES,People's Services,Miscellaneous Expenses,A49000
http://opendatacommunities.org/id/london-borough-council/sutton,London Borough of Sutton,06/08/0202,10014266,29.99,AMZNMKTPLACE AMAZON.C,PLIT - THE GLOWHOUSE AIR DRYING MODELLING CLAY,People's Services,Miscellaneous Expenses,A49000
http://opendatacommunities.org/id/london-borough-council/sutton,London Borough of Sutton,06/08/0202,10014266,11.95,AMZNMKTPLACE AMAZON.C,PLIT - 54 PIECE MINI JUNGLE ANIMALS TOYS SET,People's Services,Miscellaneous Expenses,A49000
http://opendatacommunities.org/id/london-borough-council/sutton,London Borough of Sutton,06/08/0202,10014266,7.99,AMZNMKTPLACE AMAZON.C,PLIT - PROFESSIONAL SKETCH AND DRAWING PENCILS SET,People's Services,Miscellaneous Expenses,A49000
http://opendatacommunities.org/id/london-borough-council/sutton,London Borough of Sutton,24/08/0202,10014266,33.9,MEDWAY SPOR,IDO,People's Services,Client Activities,A56028
http://opendatacommunities.org/id/london-borough-council/sutton,London Borough of Sutton,14/08/0202,10014266,300,RESTON WAST,300 A61011 G03840 9999 - SKIP HIRE,People's Services,Client Care/Assistance,A61011
http://opendatacommunities.org/id/london-borough-council/sutton,London Borough of Sutton,14/08/0202,10014266,745,WWW.ARGOS.CO.U,ASHING MACHINE AND OVEN FOR CLIENT OF CARSHALTON FIRST RESPONSE TEAM.,People's Services,Client Care/Assistance,A61011
http://opendatacommunities.org/id/london-borough-council/sutton,London Borough of Sutton,04/08/0202,10014266,104.03,STORAGEMART UK #521,TORAGE REQUIRED FOR A CLIENT,People's Services,Storage And Archiving Services,A44085
http://opendatacommunities.org/id/london-borough-council/sutton,London Borough of Sutton,03/08/0202,10014266,425.97,ASDA STORES LT,MERGENCY SHOPPING VOUCHERS FOR START CLIENTS,People's Services,Miscellaneous Expenses,A49000
http://opendatacommunities.org/id/london-borough-council/sutton,London Borough of Sutton,22/08/0202,10014266,20.44,AMZNMKTPLAC,FFICE SUPPLIES,People's Services,Miscellaneous Expenses,A49000
http://opendatacommunities.org/id/london-borough-council/sutton,London Borough of Sutton,04/08/0202,10014266,418.29,CS MORRISONS GIFT CAR,MERGENCY SHOPPING VOUCHERS FOR START CLIENTS,People's Services,Miscellaneous Expenses,A49000
http://opendatacommunities.org/id/london-borough-council/sutton,London Borough of Sutton,03/08/0202,10014266,421.87,HIGH STREET VOUCHER,MERGENCY SHOPPING VOUCHERS FOR START CLIENTS,People's Services,Miscellaneous Expenses,A49000
http://opendatacommunities.org/id/london-borough-council/sutton,London Borough of Sutton,03/08/0202,10014266,15,WILKO RETAIL LIMITE,MERGENCY SHOP FOR START CLIENT J O'CONNOR,People's Services,Miscellaneous Expenses,A49000
http://opendatacommunities.org/id/london-borough-council/sutton,London Borough of Sutton,16/08/0202,10014266,11,LBSUTTON MOT,EATHCERTLEAVER,Resources,Funeral Expenses,A44220
http://opendatacommunities.org/id/london-borough-council/sutton,London Borough of Sutton,15/08/0202,10014266,742.95,STARTSAFETY.U,URCAHSE OF 1 METRE POST EXTENSIONS FOR P&D MACHINE SIGNS IN SURFACE CAR PARKS,Environment Housing and Neighbourhoods,Other Capital Expenditure,C20002
http://opendatacommunities.org/id/london-borough-council/sutton,London Borough of Sutton,09/08/0202,10014266,336,BOARDS DIREC,IVIDERS FOR B7,Health and Wellbeing,Classroom furniture and equipment,A40017
http://opendatacommunities.org/id/london-borough-council/sutton,London Borough of Sutton,07/08/0202,10014266,15.82,AMZNMKTPLACE AMAZON.C,OOR BELL - IT,Health and Wellbeing,IT Software Purchase,A45040
http://opendatacommunities.org/id/london-borough-council/sutton,London Borough of Sutton,04/08/0202,10014266,59,SIGNABL,70.8,Health and Wellbeing,IT Software Purchase,A45040
http://opendatacommunities.org/id/london-borough-council/sutton,London Borough of Sutton,27/07/0202,10014266,9.98,G2ABVSHO,T SOFTWARD,Health and Wellbeing,IT Software Purchase,A45040
http://opendatacommunities.org/id/london-borough-council/sutton,London Borough of Sutton,14/08/0202,10014266,8.75,AMZNMKTPLAC,ISPLAY PORT BVA MINI ADAPTOR,Health and Wellbeing,IT Software Purchase,A45040
http://opendatacommunities.org/id/london-borough-council/sutton,London Borough of Sutton,15/08/0202,10014266,10.66,AMZNMKTPLAC,IFI DONGLE FOR RS,Health and Wellbeing,IT Software Purchase,A45040
http://opendatacommunities.org/id/london-borough-council/sutton,London Borough of Sutton,01/08/0202,10014266,74.25,GSUITE_SUTTONCOLLEGE.,OOGLE CLOUD EMEA LIMITED 4773998958 T02260 A47010,Health and Wellbeing,Subscriptions,A47010
http://opendatacommunities.org/id/london-borough-council/sutton,London Borough of Sutton,23/08/0202,10014266,24,WILKO RETAIL LIMITE,ILKO EVENT RESOURCES 28.80 230823,Health and Wellbeing,Publicity,A44266
http://opendatacommunities.org/id/london-borough-council/sutton,London Borough of Sutton,07/08/0202,10014266,47.99,ADOBE STOC,DOBE 47.99 070823,Health and Wellbeing,Publicity,A44266
http://opendatacommunities.org/id/london-borough-council/sutton,London Borough of Sutton,02/08/0202,10014266,4.57,AMZNBUSINESS JO2I57ZR,PLIT A4 LAYOUT PAPER PAD GLUED 1 SIDE,Health and Wellbeing,Publicity,A44266
http://opendatacommunities.org/id/london-borough-council/sutton,London Borough of Sutton,02/08/0202,10014266,10.42,AMZNBUSINESS KB6AY2N8,PLIT - ZIG MEMORY SYSTEM CALLIGRAPHY MARKER PURE BLACK,Health and Wellbeing,Publicity,A44266
http://opendatacommunities.org/id/london-borough-council/sutton,London Borough of Sutton,31/07/0202,10014266,438.1,FACEBK  9L4L5QX6A,ACEBOOK 310723 438.10,Health and Wellbeing,Publicity,A44266
http://opendatacommunities.org/id/london-borough-council/sutton,London Borough of Sutton,30/07/0202,10014266,90.57,MAILCHIM,AILCHIMP 300723 108.69,Health and Wellbeing,Publicity,A44266
http://opendatacommunities.org/id/london-borough-council/sutton,London Borough of Sutton,26/08/0202,10014266,12.04,ASD,sda Sustainable mkt resources 12.04 260823,Health and Wellbeing,Publicity,A44266
http://opendatacommunities.org/id/london-borough-council/sutton,London Borough of Sutton,10/08/0202,10014266,7.4,AMZNBUSINESS 1V4E70S5,PLIT - MANCHESTER CITY TREBLE WINNERS 2022-23 SOUVENIR PUBLICATION,People's Services,LAC - Education,A44280
http://opendatacommunities.org/id/london-borough-council/sutton,London Borough of Sutton,10/08/0202,10014266,6.25,AMZNBUSINESS 1V4E70S5,PLIT - MESSI RULES,People's Services,LAC - Education,A44280
http://opendatacommunities.org/id/london-borough-council/sutton,London Borough of Sutton,10/08/0202,10014266,5.99,AMZNBUSINESS 1V9Q7576,PLIT - MAN CITY WORD SEARCH AND FACTS BOOK FOR KIDS,People's Services,LAC - Education,A44280
http://opendatacommunities.org/id/london-borough-council/sutton,London Borough of Sutton,10/08/0202,10014266,7.74,AMZNBUSINESS 1V9Q7576,PLIT - EGYPTIAN COOKBOOK,People's Services,LAC - Education,A44280
http://opendatacommunities.org/id/london-borough-council/sutton,London Borough of Sutton,09/08/0202,10014266,690,SP ILASH SHA,RAINING COURSE FOR CHILD LOOKED AFTER,People's Services,LAC - Education,A44280
http://opendatacommunities.org/id/london-borough-council/sutton,London Borough of Sutton,09/08/0202,10014266,84.9,TWINK,DUCATION RESOURCE MEMBERSHIP,People's Services,LAC - Education,A44280